Cogmind - Beta 16 @@@ ROGUE MODE // 2025.11.22 @ 00:23:00 Player: Spencer_Rockford Result: Destroyed by 16-NUK(R) with Subdweller Laser Performance ------------- Evolutions (0) 0 Regions Visited (2) 400 Robots Destroyed (7) 35 Value Destroyed (157) 157 Prototype IDs (2) 40 Alien Tech Used (0) 0 Bonus (0) 0 TOTAL SCORE: 632 Bonus ------- None Cogmind --------- Core Integrity 0/250 Matter 300/300 Energy 98/100 System Corruption 0% Temperature Cool (6) Movement Core (50) Location -10/Subcaves Parts ------- > --- POWER (1) -------- (None) > --- PROPULSION (2) --- (None) > --- UTILITY (2) ------ (None) > --- WEAPON (2) ------- (None) > --- INVENTORY (5) ---- Light Ion Engine Flight Unit Flight Unit Flight Unit Flight Unit Peak State ------------ > --- POWER ------------ Ion Engine > --- PROPULSION ------- Aluminum Leg Aluminum Leg > --- UTILITY ---------- Scrap Shield > --- WEAPON ----------- Small Laser Battle Rifle > --- INVENTORY -------- Light Ion Engine Flight Unit Flight Unit Flight Unit Flight Unit [Rating: 10] Favorites ----------- Power Ion Engine Engine Ion Engine Propulsion Aluminum Leg Leg Aluminum Leg Utility Heat Sink Device Heat Sink Protection Scrap Shield Weapon Small Laser Energy Gun Small Laser Ballistic Gun Battle Rifle Special Weapon Mining Laser Build | -11 -10 -10 ------- Run | Yrd Mat Sub Slots Evolved . | . . . Power . | . . . Propulsion . | . . . Utility . | . . . Weapon . | . . . Parts Attached 11 | 6 3 2 Power 1 | 1 . . Engine 1 | 1 . . Core . | . . . Reactor . | . . . Propulsion 2 | 2 . . Treads . | . . . Leg 2 | 2 . . Wheel . | . . . Hover . | . . . Flight . | . . . Utility 4 | 1 2 1 Device 3 | 1 2 . Storage . | . . . Processor . | . . . Hackware . | . . . Protection 1 | . . 1 Artifact . | . . . Weapon 4 | 2 1 1 Energy Gun 2 | 2 . . Energy Cannon . | . . . Ballistic Gun 1 | . . 1 Ballistic Cannon . | . . . Launcher . | . . . Special Weapon 1 | . 1 . Impact Weapon . | . . . Slashing Weapon . | . . . Piercing Weapon . | . . . Special Melee Weapon . | . . . Unidentified Prototypes . | . . . Parts Lost 8 | . 2 6 Power 1 | . . 1 Propulsion 2 | . . 2 Utility 2 | . 1 1 Weapon 3 | . 1 2 Highest Loss Streak 4 | . 1 4 To Critical Strikes . | . . . Average Backups 4 | 1 3 5 Power . | . 1 1 Propulsion 2 | . 1 4 Utility . | . . . Weapon . | 1 1 . Tool/Special . | . . . Unused Backups 6 | . 1 5 Power 1 | . . 1 Propulsion 4 | . . 4 Utility . | . . . Weapon 1 | . 1 . Tool/Special . | . . . Average Slot Usage (%) 77 | . 91 66 Engine 13 | . 14 13 Leg 27 | . 28 26 Device 10 | . 20 2 Protection 5 | . . 9 Energy Gun 16 | . 23 10 Ballistic Gun 2 | . . 3 Special Weapon 1 | . 3 . Peak Build Rating 10 | 6 7 10 Average Rating 6 | 4 6 6 On Entrance 4 | . 6 6 Avg Prop Armor Cover (%) . | . . . Naked Turns 7 | . . 7 Heaviest Build 26 | 8 9 26 Greatest Support 20 | 20 20 20 Greatest Overweight (x) 1 | . . 1 Average Overweight (x) . | . . . Largest Inventory Capacity 5 | 5 5 5 Average Capacity 5 | 5 5 5 Most Carried 5 | 5 5 5 Average Carried 4 | 1 3 5 Final Capacity 5 | 5 5 5 Final Carried 5 | 3 5 5 Class Distribution -------------------- 100% | Mutant Dominant Class ---------------- Mutant | -10/Materials Mutant | -10/Subcaves Resources | -11 -10 -10 ----------- Run | Yrd Mat Sub Matter Collected 303 | 142 123 38 Remotely . | . . . Salvage Created 226 | 57 169 . Parts 19 | 9 10 . Haulers Intercepted . | . . . Recyclers Shooed 3 | 2 1 . Parts Field Recycled . | . . . Retrieved Matter . | . . . Parts Self-Destructed 8 | . . 8 Prevented . | . . . Parts Restored . | . . . Kills | -11 -10 -10 ------- Run | Yrd Mat Sub Combat Hostiles Destroyed 4 | . 4 . Guns 4 | . 4 . Classes Destroyed 2 | 1 1 . Tunneler 3 | 3 . . Grunt 4 | . 4 . Best Kill Streak 2 | 2 2 . Combat Bots Only 2 | . 2 . Max Kills in Single Turn 1 | 1 1 . Gunslinging . | . . . Exploded . | . . . Melee . | . . . Uniques/NPCs Destroyed . | . . . Combat | -11 -10 -10 -------- Run | Yrd Mat Sub Hostile Shots Fired 81 | . 28 53 Missed 33 | . 10 23 Hits 48 | . 18 30 Projectile 48 | . 18 30 Critical Strikes 1 | . . 1 Damage Taken 976 | . 214 762 Core 272 | . 12 260 Absorbed by Shields . | . . . Core Remaining (%) 100 | 100 . . Volleys Fired 31 | 8 17 6 Largest 2 | 2 2 2 Hottest 80 | 80 80 65 Shots Fired 57 | 16 34 7 Gun 57 | 16 34 7 Cannon . | . . . Launcher . | . . . Special . | . . . Kinetic 1 | . . 1 Thermal 56 | 16 34 6 Explosive . | . . . Electromagnetic . | . . . Robot Hit Streak 13 | 6 13 6 Robot Miss Streak 3 | 3 3 2 Penetration Max . | . . . Secondary Targets . | . . . Shots Hit Robots 38 | 8 25 5 Core Hits 14 | 4 10 . Critical Kills . | . . . Critical Parts Destroyed . | . . . Critical Strikes . | . . . Melee Attacks . | . . . Impact . | . . . Slashing . | . . . Piercing . | . . . Sneak Attacks . | . . . Combat Hostiles . | . . . Follow-up Attacks . | . . . Damage Inflicted 354 | 89 265 . Guns 354 | 89 265 . Cannons . | . . . Explosions . | . . . Melee . | . . . Ramming . | . . . Kinetic . | . . . Thermal 354 | 89 265 . Explosive . | . . . Electromagnetic . | . . . Impact . | . . . Slashing . | . . . Piercing . | . . . Highest Corruption . | . . . Average Corruption . | . . . Corruption Purged . | . . . Corruption Blocked . | . . . Overload Shots . | . . . Overflow Damage . | . . . Projectiles . | . . . Explosions . | . . . Melee . | . . . Knockbacks . | . . . Impact . | . . . Kinetic . | . . . Secondary . | . . . Self-Inflicted Damage . | . . . Shots . | . . . Rammed . | . . . Targets Rammed . | . . . Kicked . | . . . Crushed . | . . . Highest Temperature 259 | 54 18 259 Average Temperature 40 | 27 4 129 Received Heat Transfer 573 | . 117 456 Siege Activations . | . . . Martial Activations . | . . . Shielding Activations . | . . . Robots Disrupted . | . . . Combat Hostiles . | . . . Robots Corrupted . | . . . Combat Hostiles . | . . . Parts Fried . | . . . Impact Corruptions . | . . . Robots Melted . | . . . Combat Hostiles . | . . . Parts Melted 1 | . 1 . Heat Transferred 825 | 200 625 . Parts Sabotaged . | . . . Parts Stolen . | . . . Parts Stripped . | . . . Power Chain Reactions . | . . . Alert | -11 -10 -10 ------- Run | Yrd Mat Sub Maximum Alert Level . | . . . Low Security (%) 100 | 100 100 . Level 1 . | . . . Level 2 . | . . . Level 3 . | . . . Level 4 . | . . . Level 5 . | . . . High Security . | . . . Max Security . | . . . Peak Influence 50 | 5 50 . Initial . | . . . Average 14 | . 18 . Influence Increases 171 | 15 156 . Destroy 0b10 Robot/C 80 | . 80 . Destroy 0b10 Robot/NC 15 | 15 . . Destroy Leader 20 | . 20 . Successful Hack 11 | . 11 . Lose Combat Pursuer 45 | . 45 . Influence Decreases 171 | 15 141 15 Entered New Map 8 | . . 8 Time Decay 143 | 15 121 7 Lost Part 20 | . 20 . Squads Dispatched 3 | . 3 . Investigation 2 | . 2 . Extermination . | . . . Reinforcement 1 | . 1 . Assault . | . . . Garrison . | . . . Intercept . | . . . Searches Triggered . | . . . Construction Impeded . | . . . Haulers Reinforced . | . . . Active Scanning Responses . | . . . Cargo Convoy Interrupts . | . . . Stealth | -11 -10 -10 --------- Run | Yrd Mat Sub Distress Signals . | . . . Communications Jammed . | . . . Distress Signals . | . . . Times Spotted 25 | . 14 11 Peak Tracking Total 10 | . 5 10 Tactical Retreats 1 | . 1 . Traps | -11 -10 -10 ------- Run | Yrd Mat Sub Traps Triggered 2 | . 1 1 Indirectly . | . . . Trap Hack Attempts . | . . . Triggered . | . . . Disarmed . | . . . Reprogrammed . | . . . Reused . | . . . Traps Extracted . | . . . Installed . | . . . Triggered . | . . . Machines | -11 -10 -10 ---------- Run | Yrd Mat Sub Machines Disabled . | . . . Max in Single Turn . | . . . Machines Repaired . | . . . Machines Dismantled . | . . . Machines Sabotaged . | . . . Overloaded Fab Kills . | . . . Hacking | -11 -10 -10 --------- Run | Yrd Mat Sub Machines Accessed 3 | . 3 . Terminals 3 | . 3 . Fabricators . | . . . Repair Stations . | . . . Recycling Units . | . . . Scanalyzers . | . . . Garrison Access . | . . . Total Hacks 11 | . 11 . Successful 6 | . 6 . Failed 5 | . 5 . Catastrophic . | . . . Database Lockouts . | . . . Manual 6 | . 6 . Terminals 11 | . 11 . Fabricators . | . . . Repair Stations . | . . . Recycling Units . | . . . Scanalyzers . | . . . Garrison Access . | . . . Terminal Hacks 6 | . 6 . Record 1 | . 1 . Robot Analysis 3 | . 3 . Prototype ID Bank 1 | . 1 . Zone Layout 1 | . 1 . Fabricator Hacks . | . . . Repair Station Hacks . | . . . Recycling Unit Hacks . | . . . Scanalyzer . | . . . Garrison Access Hacks . | . . . Unauthorized Hacks . | . . . Terminals . | . . . Fabricators . | . . . Repair Stations . | . . . Recycling Units . | . . . Scanalyzers . | . . . Garrison Access . | . . . Data Cores Recovered . | . . . Used . | . . . Hacking Detections 2 | . 2 . Full Trace Events 2 | . 2 . Feedback Events . | . . . Feedback Blocked . | . . . Robot Schematics Acquired . | . . . Robots Built . | . . . Authchips . | . . . Time . | . . . Total Robot Build Rating . | . . . Part Schematics Acquired . | . . . Parts Built . | . . . Authchips . | . . . Time . | . . . Total Part Build Rating . | . . . Part Studies Acquired . | . . . Parts Repaired . | . . . Time . | . . . Parts Recycled . | . . . Recycled Matter . | . . . Retrieved Matter . | . . . Retrieved Components . | . . . Parts Scanalyzed . | . . . Part Schematics Acquired . | . . . Parts Damaged . | . . . Bothacking | -11 -10 -10 ------------ Run | Yrd Mat Sub Used RIF Installer . | . . . Robots Hacked . | . . . Non-combat . | . . . Combat . | . . . Robot Hacks Applied . | . . . Relay Couplers Released . | . . . Fabnet Peak Effective % . | . . . Robots Rewired . | . . . Allies Hacked . | . . . Hacks Repelled . | . . . Allies | -11 -10 -10 -------- Run | Yrd Mat Sub Total Allies . | . . . Largest Group . | . . . Highest-Rated Group . | . . . Highest-Rated Ally . | . . . Total Orders . | . . . Ally Attacks . | . . . Total Damage . | . . . Kills . | . . . Allies Corrupted . | . . . Allies Melted . | . . . Intel | -11 -10 -10 ------- Run | Yrd Mat Sub Active Infowar (turns) 156 | 30 126 . Seismic 156 | 30 126 . Robot Analysis Total 3 | . 3 . Derelict Logs Recovered . | . . . Drone Launches . | . . . Drone Recoveries . | . . . Exploration | -11 -10 -10 ------------- Run | Yrd Mat Sub Turns Passed 786 | 92 302 392 Spaces Moved 478 | 53 181 244 Core 28 | 14 . 14 Treads . | . . . Legs 450 | 39 181 230 Wheels . | . . . Hover . | . . . Flight . | . . . Fastest Speed 50 | 50 120 50 Average Speed 135 | 101 120 153 Slowest Speed 190 | 120 120 190 Overloaded Moves . | . . . Propulsion Burnouts . | . . . Robots Hopped . | . . . Potential Cave-ins . | . . . Cave-ins Triggered . | . . . Exploration Rate (%) 18 | 3 29 23 Regions Visited 2 Branch Regions 1 Pre-discovered Areas . | . . . Known Exits Taken . | . . . Unknown Exits Taken 2 | 1 1 . Scrap Searched . | . . . Spaces Dug . | . . . Terrain Destroyed . | . . . Melee . | . . . Projectile . | . . . AOE . | . . . Terrain Rammed . | . . . Walls Destroyed . | . . . Machines Disabled . | . . . Actions | -11 -10 -10 --------- Run | Yrd Mat Sub Total 561 | 74 233 254 Wait 25 | . 25 . Move 476 | 52 180 244 Hop . | . . . Pick Up 14 | 8 6 . Fast Attach 3 | 1 . 2 Attach 8 | 5 3 . Detach . | . . . Swap . | . . . Drop 4 | . 2 2 Fire 31 | 8 17 6 Melee . | . . . Ram . | . . . Kick . | . . . Crush . | . . . Escape Stasis . | . . . Rewire . | . . . Trap . | . . . Miscellaneous . | . . . Route ------- -11/Scrapyard -10/Materials (discovered 2 exits: [*Mat] / [*Sub]) -10/Subcaves History --------- Turn | Location | Event 4 | -11/Scrapyard | Discovered new exit (range 15) 93 | -11/Scrapyard | Entered Materials 267 | -10/Materials | Discovered new exit (range 17) 329 | -10/Materials | Build established: Mutant 377 | -10/Materials | Discovered new exit (range 15) 395 | -10/Materials | Entered Subcaves 396 | -10/Subcaves | Approached by a straggling Scientist 682 | -10/Subcaves | Shifting Twisted Machinery released Sub. Beam Cannon 686 | -10/Subcaves | Shifting Twisted Machinery released Sub. Power Source 717 | -10/Subcaves | Shifting Twisted Machinery released Sub. Monowheel 755 | -10/Subcaves | Ambushed by swarm of Subdwellers 777 | -10/Subcaves | Core integrity fell below 50% 784 | -10/Subcaves | Core integrity fell below 20% 787 | -10/Subcaves | Destroyed by 16-NUK(R) with Subdweller Laser Last Messages --------------- 00675_ Sml. Laser destroyed. 00677_ Scrap Shield destroyed. Sub. Beam Cannon falls loose from the Twisted Machinery. Sub. Power Source falls loose from the Twisted Machinery. Sub. Monowheel falls loose from the Twisted Machinery. 00744_ Aluminum Leg destroyed. 00758_ MW-FB8(R) emerges from the Twisted Machinery. 00759_ Q6-C24(R) emerges from the Twisted Machinery. 00760_ ZH-UDM(R) emerges from the Twisted Machinery. 00761_ Battle Rifle destroyed. 00774_ Triggered Piercing Trap. 00774_ Spikes shoot up from the floor. 00778_ Ion Engine destroyed. 00780_ Aluminum Leg destroyed. Map ----- +----------------------------------------------------+ | ?????????????????????????????????????????????????? | | ?????????????????????????????????????????????????? | | ?????????????????????????????????????????????????? | | ?????????????????????????????????????????????????? | | ?????????????????????????????????????????????????? | | ?????????????????????????????????????????????????? | | ?????????????????????????????????????????????????? | | ?????????????????????????????????????????????????? | | ?????????????????????????????????????????????????? | | ?????????????????????????????????????????????????? | | ?????????????????????????????????????????????????? | | ?????????????????????????????????????????????????? | | ?????????????????????????????????????????????????? | | ?????????????????????????????????????????????????? | | ?????????????????????????????????????????????????? | | ?????????????????????????????????????????????????? | | ???????????????????? ??????????#?????????????????? | | ???????????????????? ????????? #?????????????????? | | ???????????????????? ????????? ##????????????????? | | ????????????????????# ??????? ""#????????????????? | | ????????????????????# ??????# #?????????????????? | | ????????????????????# ?????? #?????????????????? | | ???????????????????## ????## ##????????????????? | | ???????????????????# #?## ##???????????????? | | ???????????????????## ## #???????????????? | | ???????????????????# # @ #???? ##??????????????? | | ?????????????????#### #?? ##?????????????? | | ?????????????????# ### ## #?????????????? | | ?????????????????# ### #??????????????? | | ????????????????## ## ##???????????????? | | ????????????????# " ##????????????????? | | ????????????????# R "" #?????????????????? | | ????????????????# #R#"" "#?????????????????? | | ????????????????# ###### "##?????????????????? | | ????????????????### #?????""#??????????????????? | | ??????????????????## ##????"##??????????????????? | | ???????????????????# ##???"????????????????????? | | ????????????????#### ###"""# ?????????????????? | | ???????????????## "" " #????????????????? | | ???????????????# " ""#?????????????????? | | ???????????????# " # #??????????????????? | | ??????????????## ####? ##??????????????????? | | ??????????????# #???? ##?????????????????? | | ??????????????## #??? "?????????????????? | | ???????????????## "" #??# "?????????????????? | | ????????????????## " ### ""?????????????????? | | ????????????????## " #???????????????????? | | ???????????????## """ #???????????????????? | | ???????????????# #???????????????????? | | ???????????????# #??? ???????????????? | +----------------------------------------------------+ Best States ------------- Heat Dissipation 45 Energy Generation 10 Energy Capacity 250 Matter Stores 300 Matter Capacity 300 Sight Range 16 Terrain Scan Density 10 Armor Coverage 800 Evasion (%) 55 Item Schematics ----------------- None Robot Schematics ------------------ None Fabricated ------------ Nothing Repaired ---------- Nothing Studied --------- None Alien Tech Used ----------------- None Achievements -------------- None Challenges ------------ None Game ------ Seed SalvageResetWheel Manual? 0 Play Time 00:11:46 Cumulative 27.0 hours Start 2025.11.22 @ 00:14:27 End 2025.11.22 @ 00:23:00 Sessions 1 Manual Loads 0 Difficulty Rogue Special Mode None Game No. 66 Rogue 66 Adventurer 0 Explorer 0 Win Type - Total 0 Types 0/0/0/0/0/0/0/0/0/0 Lore% 17 Gallery% 23 Achievement% 16 Wizard Run 0 Options --------- Layout 1 ASCII 0 Keyboard 0 Movement Mouse Keybinds 0 Fullscreen 2 Font 24/Smallcaps Map View 50x35 Zoom Use 0% Tactical HUD 1 Map Filters NONE Filters NONE Steam 1 RUN: 2475c00f-dba2-458e-8613-7e87dbffe1b5